Cogmind - Beta 16.1 @@@ ROGUE MODE // 2026.02.20 @ 20:56:05 Player: VLAM Result: Destroyed by G-47 Trooper with Particle Gun Performance ------------- Evolutions (2) 1000 Regions Visited (4) 800 Robots Destroyed (14) 70 Value Destroyed (373) 373 Prototype IDs (1) 20 Alien Tech Used (0) 0 Bonus (0) 0 TOTAL SCORE: 2263 Bonus ------- None Cogmind --------- Core Integrity 0/550 Matter 295/300 Energy 5/125 System Corruption 9% Temperature Cool (62) Movement Core (150) Ox2 Location -8/Materials Parts ------- > --- POWER (2) -------- Light Ion Engine > --- PROPULSION (3) --- (None) > --- UTILITY (3) ------ Advanced Targeting Computer > --- WEAPON (3) ------- Field Laser Field Laser > --- INVENTORY (5) ---- (None) Peak State ------------ > --- POWER ------------ Ion Engine Improved Ion Engine > --- PROPULSION ------- Wheel Armored Wheel > --- UTILITY ---------- Small Storage Unit Light Armor Plating Medium Armor Plating > --- WEAPON ----------- Medium Laser Advanced Beam Cannon > --- INVENTORY -------- Ion Engine Ion Engine Light Treads Light Treads Wheel Huge Storage Unit EM Pulse Gun EM Pulse Gun [Rating: 14] Favorites ----------- Power Ion Engine Engine Ion Engine Propulsion Wheel Treads Light Treads Wheel Wheel Utility Small Storage Unit Device ECM Suite Storage Small Storage Unit Processor Advanced Targeting Computer Protection Medium Armor Plating Weapon Medium Laser Energy Gun Medium Laser Energy Cannon Advanced Beam Cannon Ballistic Gun Heavy Assault Rifle Build | -11 -10 -9 -9 -8 ------- Run | Yrd Mat Mat Min Mat Slots Evolved 4 | . . 2 . 2 Power 1 | . . 1 . . Propulsion 1 | . . . . 1 Utility 1 | . . 1 . . Weapon 1 | . . . . 1 Parts Attached 32 | 6 1 10 4 11 Power 9 | 1 . 4 2 2 Engine 9 | 1 . 4 2 2 Core . | . . . . . Reactor . | . . . . . Propulsion 6 | 2 . 1 2 1 Treads 2 | . . . 2 . Leg . | . . . . . Wheel 4 | 2 . 1 . 1 Hover . | . . . . . Flight . | . . . . . Utility 8 | 1 1 3 . 3 Device 1 | . 1 . . . Storage 2 | 1 . 1 . . Processor 1 | . . . . 1 Hackware . | . . . . . Protection 4 | . . 2 . 2 Artifact . | . . . . . Weapon 9 | 2 . 2 . 5 Energy Gun 7 | 2 . 1 . 4 Energy Cannon 1 | . . 1 . . Ballistic Gun 1 | . . . . 1 Ballistic Cannon . | . . . . . Launcher . | . . . . . Special Weapon . | . . . . . Impact Weapon . | . . . . . Slashing Weapon . | . . . . . Piercing Weapon . | . . . . . Special Melee Weapon . | . . . . . Unidentified Prototypes 1 | . . 1 . . Parts Lost 20 | . . . 9 11 Power 5 | . . . 3 2 Propulsion 5 | . . . 2 3 Utility 5 | . . . 2 3 Weapon 5 | . . . 2 3 Highest Loss Streak 10 | . . . 9 10 To Critical Strikes . | . . . . . Average Backups 5 | 2 6 7 7 1 Power . | . 1 . 2 . Propulsion 3 | 1 4 3 2 1 Utility . | . . 1 1 . Weapon 1 | . 1 1 1 . Tool/Special . | . . . . . Unused Backups 4 | . . 4 . . Power 1 | . . 1 . . Propulsion 2 | . . 2 . . Utility . | . . . . . Weapon 1 | . . 1 . . Tool/Special . | . . . . . Average Slot Usage (%) 83 | . 97 95 68 48 Engine 18 | . 14 22 16 11 Treads 2 | . . . 5 10 Wheel 17 | . 28 22 14 2 Device 5 | . 11 6 . . Storage 10 | . 14 11 11 5 Processor 1 | . . . . 5 Protection 7 | . . 11 7 2 Energy Gun 18 | . 28 21 12 5 Ballistic Gun 1 | . . . . 5 Peak Build Rating 14 | 6 7 14 12 13 Average Rating 9 | 3 6 11 6 8 On Entrance 5 | . 6 7 12 4 Avg Prop Armor Cover (%) . | . . . . . Naked Turns . | . . . . . Heaviest Build 33 | 14 16 33 31 23 Greatest Support 40 | 20 20 22 40 40 Greatest Overweight (x) 4 | 4 . 1 3 3 Average Overweight (x) . | . . . . . Largest Inventory Capacity 25 | 8 8 25 8 8 Average Capacity 7 | 7 8 8 8 6 Most Carried 8 | 6 7 8 8 3 Average Carried 5 | 2 6 7 6 1 Final Capacity 8 | 8 8 8 8 5 Final Carried 8 | 6 7 8 4 . Class Distribution -------------------- 97% | Mutant Dominant Class ---------------- Mutant | -10/Materials Mutant | -9/Materials Mutant | -9/Mines Mutant | -8/Materials Resources | -11 -10 -9 -9 -8 ----------- Run | Yrd Mat Mat Min Mat Matter Collected 504 | 240 17 133 . 114 Remotely . | . . . . . Salvage Created 487 | . 17 274 . 196 Parts 41 | . 2 27 . 12 Haulers Intercepted . | . . . . . Recyclers Shooed . | . . . . . Parts Field Recycled . | . . . . . Retrieved Matter . | . . . . . Parts Self-Destructed . | . . . . . Prevented . | . . . . . Parts Restored . | . . . . . Kills | -11 -10 -9 -9 -8 ------- Run | Yrd Mat Mat Min Mat Combat Hostiles Destroyed 13 | . . 8 . 5 Guns 13 | . . 8 . 5 Classes Destroyed 5 | . 1 3 . 1 Operator 1 | . 1 . . . Swarmer 6 | . . 4 . 2 Grunt 3 | . . 2 . 1 Duelist 1 | . . . . 1 Sentry 3 | . . 2 . 1 Best Kill Streak 4 | . 1 2 . 4 Combat Bots Only 4 | . . 2 . 4 Max Kills in Single Turn 1 | . 1 1 . 1 Gunslinging . | . . . . . Exploded . | . . . . . Melee . | . . . . . Uniques/NPCs Destroyed . | . . . . . Combat | -11 -10 -9 -9 -8 -------- Run | Yrd Mat Mat Min Mat Hostile Shots Fired 239 | . . 56 17 166 Missed 59 | . . 16 1 42 Hits 180 | . . 40 16 124 Melee 10 | . . . . 10 Projectile 170 | . . 40 16 114 AOE 20 | . . . 20 . Critical Strikes 6 | . . . . 6 Damage Taken 3105 | . . 457 813 1835 Core 887 | . . 24 313 550 Absorbed by Shields . | . . . . . Core Remaining (%) 71 | 100 100 . 15 . Volleys Fired 29 | . 2 18 . 9 Largest 3 | . 2 2 . 3 Hottest 189 | . 90 90 . 189 Shots Fired 57 | . 4 34 . 19 Gun 57 | . 4 34 . 19 Cannon . | . . . . . Launcher . | . . . . . Special . | . . . . . Kinetic 3 | . . . . 3 Thermal 36 | . 2 18 . 16 Explosive . | . . . . . Electromagnetic 18 | . 2 16 . . Robot Hit Streak 19 | . 1 9 . 19 Robot Miss Streak 3 | . 2 3 . 2 Penetration Max . | . . . . . Secondary Targets 3 | . . . . 3 Max Gunslinging Chain 1 | . . . . 1 Shots Hit Robots 36 | . 1 21 . 14 Core Hits 22 | . 1 12 . 9 Critical Kills . | . . . . . Critical Parts Destroyed . | . . . . . Critical Strikes 1 | . . 1 . . Burn 1 | . . 1 . . Melee Attacks . | . . . . . Impact . | . . . . . Slashing . | . . . . . Piercing . | . . . . . Sneak Attacks . | . . . . . Combat Hostiles . | . . . . . Follow-up Attacks . | . . . . . Damage Inflicted 507 | . 15 264 . 228 Guns 487 | . 15 264 . 208 Cannons . | . . . . . Explosions . | . . . . . Melee . | . . . . . Ramming 20 | . . . . 20 Kinetic 42 | . . . . 42 Thermal 303 | . . 137 . 166 Explosive . | . . . . . Electromagnetic 142 | . 15 127 . . Impact . | . . . . . Slashing . | . . . . . Piercing . | . . . . . Highest Corruption 9 | . . 2 2 9 Average Corruption 4 | . . 2 2 8 Corruption Purged . | . . . . . Corruption Blocked . | . . . . . Effects 6 | . . 1 1 4 Message Errors 1 | . . . . 1 Matter Fused 2 | . . 1 . 1 Energy Discharges 1 | . . . . 1 Data Loss (minor) 2 | . . . 1 1 Overload Shots . | . . . . . Overflow Damage . | . . . . . Projectiles . | . . . . . Explosions . | . . . . . Melee . | . . . . . Knockbacks 1 | . . . . 1 Impact 1 | . . . . 1 Kinetic . | . . . . . Secondary . | . . . . . Self-Inflicted Damage 9 | . . . . 9 Shots . | . . . . . Rammed 5 | . . . . 5 Targets Rammed 5 | . . . . 5 Kicked . | . . . . . Crushed . | . . . . . Highest Temperature 362 | . 60 362 . 205 Average Temperature 100 | . 33 106 . 98 Received Heat Transfer 891 | . . 153 . 738 Effects 2 | . . 2 . . Shutdowns 2 | . . 2 . . Siege Activations . | . . . . . Martial Activations . | . . . . . Shielding Activations . | . . . . . Robots Disrupted . | . . . . . Combat Hostiles . | . . . . . Robots Corrupted . | . . . . . Combat Hostiles . | . . . . . Parts Fried . | . . . . . Impact Corruptions . | . . . . . Robots Melted . | . . . . . Combat Hostiles . | . . . . . Parts Melted 1 | . . . . 1 Heat Transferred 888 | . . 481 . 407 Parts Sabotaged . | . . . . . Parts Stolen . | . . . . . Parts Stripped . | . . . . . Power Chain Reactions . | . . . . . Alert | -11 -10 -9 -9 -8 ------- Run | Yrd Mat Mat Min Mat Maximum Alert Level . | . . . . . Low Security (%) 100 | 100 100 100 100 100 Level 1 . | . . . . . Level 2 . | . . . . . Level 3 . | . . . . . Level 4 . | . . . . . Level 5 . | . . . . . High Security . | . . . . . Max Security . | . . . . . Peak Influence 185 | . 5 47 5 185 Initial 5 | . . . 5 . Average 12 | . . 15 1 13 Influence Increases 497 | . 5 227 . 265 Destroy 0b10 Robot/C 260 | . . 160 . 100 Destroy 0b10 Robot/NC 5 | . 5 . . . Destroy Leader 60 | . . 30 . 30 Successful Hack 4 | . . 4 . . Destroy Structure 3 | . . 3 . . Lose Combat Pursuer 165 | . . 30 . 135 Influence Decreases 302 | . 5 212 15 70 Entered New Map 10 | . . . 10 . Time Decay 247 | . 5 212 . 30 Lost Part 45 | . . . 5 40 Squads Dispatched 1 | . 1 . . . Investigation 1 | . 1 . . . Extermination . | . . . . . Reinforcement . | . . . . . Assault . | . . . . . Garrison . | . . . . . Intercept . | . . . . . Searches Triggered . | . . . . . Construction Impeded . | . . . . . Haulers Reinforced . | . . . . . Active Scanning Responses . | . . . . . Cargo Convoy Interrupts . | . . . . . Stealth | -11 -10 -9 -9 -8 --------- Run | Yrd Mat Mat Min Mat Distress Signals 1 | . 1 . . . Communications Jammed . | . . . . . Distress Signals . | . . . . . Times Spotted 44 | . 2 21 2 19 Peak Tracking Total 12 | . 3 6 2 12 Tactical Retreats 9 | . 2 3 . 4 ECM-based Alert Blocks 6 | . 3 3 . . Traps | -11 -10 -9 -9 -8 ------- Run | Yrd Mat Mat Min Mat Traps Triggered 2 | . 1 . . 1 Indirectly . | . . . . . Trap Hack Attempts . | . . . . . Triggered . | . . . . . Disarmed . | . . . . . Reprogrammed . | . . . . . Reused . | . . . . . Traps Extracted . | . . . . . Installed . | . . . . . Triggered . | . . . . . Machines | -11 -10 -9 -9 -8 ---------- Run | Yrd Mat Mat Min Mat Machines Disabled . | . . . . . Max in Single Turn . | . . . . . Machines Repaired . | . . . . . Machines Dismantled . | . . . . . Machines Sabotaged . | . . . . . Overloaded Fab Kills . | . . . . . Hacking | -11 -10 -9 -9 -8 --------- Run | Yrd Mat Mat Min Mat Machines Accessed 3 | . 1 1 . 1 Terminals 2 | . 1 1 . . Fabricators . | . . . . . Repair Stations . | . . . . . Recycling Units 1 | . . . . 1 Scanalyzers . | . . . . . Garrison Access . | . . . . . Total Hacks 8 | . 2 3 . 3 Successful 5 | . . 2 . 3 Failed 3 | . 2 1 . . Catastrophic . | . . . . . Database Lockouts . | . . . . . Manual . | . . . . . Terminals 5 | . 2 3 . . Fabricators . | . . . . . Repair Stations . | . . . . . Recycling Units 3 | . . . . 3 Scanalyzers . | . . . . . Garrison Access . | . . . . . Terminal Hacks 2 | . . 2 . . Emergency Access Points 1 | . . 1 . . Locate Traps 1 | . . 1 . . Fabricator Hacks . | . . . . . Repair Station Hacks . | . . . . . Recycling Unit Hacks 3 | . . . . 3 Recycle Component 1 | . . . . 1 Process 2 | . . . . 2 Scanalyzer . | . . . . . Garrison Access Hacks . | . . . . . Unauthorized Hacks . | . . . . . Terminals . | . . . . . Fabricators . | . . . . . Repair Stations . | . . . . . Recycling Units . | . . . . . Scanalyzers . | . . . . . Garrison Access . | . . . . . Data Cores Recovered 1 | . 1 . . . Used . | . . . . . Hacking Detections 2 | . 1 . . 1 Full Trace Events 1 | . . . . 1 Feedback Events . | . . . . . Feedback Blocked . | . . . . . Robot Schematics Acquired . | . . . . . Robots Built . | . . . . . Authchips . | . . . . . Time . | . . . . . Total Robot Build Rating . | . . . . . Part Schematics Acquired . | . . . . . Parts Built . | . . . . . Authchips . | . . . . . Time . | . . . . . Total Part Build Rating . | . . . . . Part Studies Acquired . | . . . . . Parts Repaired . | . . . . . Time . | . . . . . Parts Recycled 1 | . . . . 1 Recycled Matter 304 | . . . . 304 Retrieved Matter . | . . . . . Retrieved Components . | . . . . . Parts Scanalyzed . | . . . . . Part Schematics Acquired . | . . . . . Parts Damaged . | . . . . . Bothacking | -11 -10 -9 -9 -8 ------------ Run | Yrd Mat Mat Min Mat Used RIF Installer . | . . . . . Robots Hacked . | . . . . . Non-combat . | . . . . . Combat . | . . . . . Robot Hacks Applied . | . . . . . Relay Couplers Released . | . . . . . Fabnet Peak Effective % . | . . . . . Robots Rewired . | . . . . . Allies Hacked . | . . . . . Hacks Repelled . | . . . . . Allies | -11 -10 -9 -9 -8 -------- Run | Yrd Mat Mat Min Mat Total Allies . | . . . . . Largest Group . | . . . . . Highest-Rated Group . | . . . . . Highest-Rated Ally . | . . . . . Total Orders . | . . . . . Ally Attacks . | . . . . . Total Damage . | . . . . . Kills . | . . . . . Allies Corrupted . | . . . . . Allies Melted . | . . . . . Intel | -11 -10 -9 -9 -8 ------- Run | Yrd Mat Mat Min Mat Active Infowar (turns) 588 | . 118 470 . . ECM 588 | . 118 470 . . Robot Analysis Total . | . . . . . Derelict Logs Recovered . | . . . . . Drone Launches . | . . . . . Drone Recoveries . | . . . . . Exploration | -11 -10 -9 -9 -8 ------------- Run | Yrd Mat Mat Min Mat Turns Passed 1341 | 76 137 791 48 289 Spaces Moved 750 | 56 138 351 40 165 Core 84 | 22 . . 3 59 Treads 79 | . . . 9 70 Legs . | . . . . . Wheels 587 | 34 138 351 28 36 Hover . | . . . . . Flight . | . . . . . Fastest Speed 50 | 50 80 85 85 50 Average Speed 98 | 109 80 96 110 112 Slowest Speed 250 | 250 80 100 200 240 Overloaded Moves . | . . . . . Propulsion Burnouts . | . . . . . Robots Hopped . | . . . . . Potential Cave-ins . | . . . . . Cave-ins Triggered . | . . . . . Exploration Rate (%) 20 | 4 31 32 18 18 Regions Visited 4 Branch Regions 1 Pre-discovered Areas . | . . . . . Known Exits Taken . | . . . . . Unknown Exits Taken 4 | 1 1 1 1 . Scrap Searched . | . . . . . Spaces Dug . | . . . . . Terrain Destroyed . | . . . . . Melee . | . . . . . Projectile . | . . . . . AOE . | . . . . . Terrain Rammed . | . . . . . Walls Destroyed . | . . . . . Machines Disabled . | . . . . . Actions | -11 -10 -9 -9 -8 --------- Run | Yrd Mat Mat Min Mat Total 1289 | 67 159 771 44 248 Wait 445 | . 18 372 1 54 Move 746 | 55 137 350 39 165 Hop . | . . . . . Pick Up 16 | 6 1 8 . 1 Fast Attach 19 | 6 1 2 . 10 Attach 10 | . . 2 4 4 Detach . | . . . . . Swap 8 | . . 8 . . Drop 11 | . . 11 . . Fire 29 | . 2 18 . 9 Melee . | . . . . . Ram 5 | . . . . 5 Kick . | . . . . . Crush . | . . . . . Escape Stasis . | . . . . . Rewire . | . . . . . Trap . | . . . . . Miscellaneous . | . . . . . Route ------- -11/Scrapyard -10/Materials -9/Materials -9/Mines -8/Materials History --------- Turn | Location | Event 13 | -11/Scrapyard | Discovered new exit (range 16) 77 | -11/Scrapyard | Entered Materials 197 | -10/Materials | Discovered new exit (range 16) 214 | -10/Materials | Entered another Materials area 214 | -9/Materials | Evolved 2 slots: Power x1, Utility x1 313 | -9/Materials | Build established: Mutant 991 | -9/Materials | Discovered new exit (range 15) 1005 | -9/Materials | Entered Mines 1006 | -9/Mines | Assembled infested the area 1011 | -9/Mines | Assisted by a Guerilla fighting off Assembled 1035 | -9/Mines | Core integrity fell below 50% 1042 | -9/Mines | Core integrity fell below 20% 1043 | -9/Mines | Discovered new exit (range 8) 1053 | -9/Mines | Entered Materials 1053 | -8/Materials | Evolved 2 slots: Propulsion x1, Weapon x1 1069 | -8/Materials | Lost 9 parts (3p2n2u2w) 1281 | -8/Materials | Core integrity fell below 50% 1309 | -8/Materials | Lost 10 parts (2p3n3u2w) 1316 | -8/Materials | Core integrity fell below 20% 1342 | -8/Materials | Destroyed by G-47 Trooper with Particle Gun Last Messages --------------- 01287_ K-01 Serf collects debris. 01289_ S-10 Pest destroyed. 01292_ K-01 Serf collects debris. 01303_ Acquired 84 matter. 01304_ System corrupted: Energy discharge (-38). 01304_ Acquired Field Laser. [Achievement: There's More Where That Came From] 01306_ Acquired Field Laser. 01316_ Y-45 Defender destroyed. 01316_ Switching to secondary target: S-10 Pest. 01320_ System corrupted: Component data lost. 01321_ Acquired 30 matter. 01328_ S-10 Pest destroyed. 01328_ Switching to secondary target: S-10 Pest. 01334_ S-10 Pest destroyed. 01338_ Critical hit (Burn: +37). 01340_ Acquired Lgt. Ion Engine. 01341_ Field Laser destroyed. 01342_ Imp. Heat Sink melted. 01342_ G-47 Trooper destroyed. Map ----- +----------------------------------------------------+ | ?????????????????????????????????????????????????? | | ?????????????????????????????????????????????????? | | ?????????????????????????????????????????????????? | | ?????????????????????????????????????????????????? | | ?????????????????????????????????????????????????? | | ?????????????????????????????????????????????????? | | ?????????????????????????????????????????????????? | | ?????????????????????????????????????????????????? | | ?????????????????????????????????????????????????? | | ?????????????????????????????????????????????????? | | ?????????????????????????????????????????????????? | | ?????????????????????????????????????????????????? | | ?????????? ????????????????????????????????????? | | ?????????# ????????????????????????????????????? | | ?????????# ????????????????????????????????????? | | ?????????# ????????????????????????????????????? | | ?????????# ????????????????????????????????????? | | ?????????+ ????????????????????????????????????? | | ?????????# ????????????????????????????????????? | | ?????##### #???????????????????????????????????? | | ?????? ###############?????????????????????? | | ??????? # #?????????????????????? | | ???????? # #?????????????????????? | | ?????????# # #?????????????????????? | | ?????????# # *%[ #?????????????????????? | | ?????????# # [r %=[@ #?????????????????????? | | ?????????# + r%g[ g g=%[ #?????????????????????? | | ?????????# ############[##?????????????????????? | | ?????????# #??????????###??????????????????????? | | ?????????# #???????????????????????????????????? | | ?????????# #???????????????????????????????????? | | ?????????# #????????????????????######?????????? | | ?????????# #????????????#######? ?????????? | | ?????????# ############## # """ ""?????????? | | ?????????# # """ ""?????????? | | ?????????# + """ ""?????????? | | ?????????# # #??????? | | ?????????################## == # #??????? | | ??????????????????????????###%###? #??????? | | ????????????????????????????#[#??? #??????? | | ???????????????????????????##+#############??????? | | ???????????????????????????# #????????????? | | ???????????????????????????# """ #????????????? | | ???????????????????????????# "R" #????????????? | | ???????????????????????????# " " #????????????? | | ???????????????????????????# #????????????? | | ???????????????????????????# """ #????????????? | | ???????????????????????????# """ #????????????? | | ?????? ######??????????????# """ | #????????????? | | ?????? ????????????# % #????????????? | +----------------------------------------------------+ Best States ------------- Heat Dissipation 31 Energy Generation 17 Energy Capacity 415 Matter Stores 300 Matter Capacity 300 Sight Range 16 Terrain Scan Density 10 ECM Strength 1 Armor Coverage 450 Evasion (%) 50 Targeting Accuracy 8 Recoil Reduction 2 Item Schematics ----------------- None Robot Schematics ------------------ None Fabricated ------------ Nothing Repaired ---------- Nothing Studied --------- None Alien Tech Used ----------------- None Achievements -------------- DATA ERROR: Steam Global Achievement% For Emergencies Only There's More Where That Came From Challenges ------------ None Game ------ Seed FusionRapidGun Manual? 0 Play Time 00:34:32 Cumulative 13.8 hours Start 2026.02.18 @ 20:24:56 End 2026.02.20 @ 20:56:05 Sessions 4 Manual Loads 0 Difficulty Rogue Special Mode None Game No. 25 Rogue 25 Adventurer 0 Explorer 0 Win Type - Total 0 Types 0/0/0/0/0/0/0/0/0/0 Lore% 1 Gallery% 16 Achievement% 8 Wizard Run 0 Options --------- Layout 0 ASCII 0 Keyboard 1 Movement Numpad Keybinds 0 Fullscreen 2 Font 24/Smallcaps Map View 76x50 Zoom Use 0% Tactical HUD 1 Map Filters NONE Filters NONE Steam 1 RUN: bbe370da-454a-460f-a59a-408d5abcc6a8